{"text_format":"1","workbook":"xlsx","n_sheets":2,"sheets":["formulier","Werk"],"not_rendered":{"charts":0,"images":2,"macros":1,"external_links":1,"defined_names":16,"comments":0,"pivot_tables":0},"unopened":[],"bounds":{"document_bytes":16777216,"sheet_cells":100000,"rows_first":2000,"rows_last":500,"rows_between":2000,"halvings":0,"cell_chars":16384,"cell_head_chars":4096},"cells_cut":0,"cells_raw":0,"read":"whole","date_system":"1900"}

{"sheet":"formulier","index":0,"n_rows":53,"n_cols":15,"rows_kept":53,"cut":false,"hidden":false,"merged":[[6,2,6,5],[6,6,6,8],[8,2,8,7],[8,8,8,11],[9,2,10,7],[9,8,9,11],[10,9,10,11],[11,2,11,7],[11,8,11,11],[12,9,12,11],[13,9,13,11],[12,5,12,7],[13,2,13,4],[52,3,53,10],[14,8,14,11],[33,3,33,8],[34,3,34,8],[35,3,35,8],[36,3,36,8],[37,3,37,8],[38,3,38,8],[44,3,44,5],[44,8,44,9],[44,10,44,11],[15,2,15,11],[27,2,28,7]]}
[]
[]
[null,null,null,null,null,null,null,null,null,null,null,"Vlaamse Schermbond vzw"]
[null,null,null,null,null,null,null,null,null,null,null,"Fédération Flamande d’Escrime"]
[null,null,null,null,null,null,null,null,null,null,null,"Flemish Fencing Federation"]
[null,null,null,null,null,null,null,null,null,null,null,"Flämische Verband der Fechtvereine",null,null,"Instructies"]
[null,null," OPDRACHTENFORMULIER",null,null,null,{"$f":"IF(H8,\"ZELFSTANDIGE\",\"VRIJWILLIGER\")","v":"ZELFSTANDIGE"},null,null,null,null,2024,null,null,"<===     Werk je voor de VSB als vrijwilliger of als zelfstandige ? Geef aan."]
[null,null,null,null,null,null,null,true]
[null,null,"Naam",null,null,null,null,null,"Van Looy Erik",null,null,null,null,null,"<===     Vul hier je naam en voornaam in"]
[null,null,"Adres",null,null,null,null,null,"Voorbeeldstraat 99",null,null,null,null,null,"<===     Straatnaam en  nummer"]
[null,null,null,null,null,null,null,null,3111,"Wezemaal",null,null,null,null,"<===     Postcode en plaatsnaam"]
[null,null,"E-mail",null,null,null,null,null,"info@voorbeeld.be",null,null,null,null,null,"<===     Je e-mailadres waar we je kunnen bereiken"]
[null,null,"Verloningscategorie",null,null,"Scheidsrechtermentor",null,null,{"$f":"IFERROR(+VLOOKUP(J13,Werk!C32:D44,2,FALSE),\"\")","v":"CAT 1"},{"$f":"+F13","v":"Scheidsrechtermentor"},null,null,null,null,"<===     Selecteer je opleidingsniveau. OPGELET, dit hangt samen met de dagvergoeding"]
[null,null,{"$f":"\"Rekeningnummer \"&VLOOKUP(I14,landcodes,2,FALSE)","v":"Rekeningnummer België"},null,null,null,{"$f":"IF(J14=\"\",\"\",IF(Werk!X9=1,\"Q\",IF(Werk!W6=Werk!W5,\"ü\",\"x\")))","v":""},{"$f":"IF(J14=\"\",\"\",IF(Werk!X9=1,+Werk!W9,IF(G14=\"ü\",+Werk!W12,\"Fout BRN\")))","v":""},"BE",null,null,null,null,null,"<===     Voer je bankrekeningnummer in met 14 opeenvolgende cijfers"]
[null,null,"Rijksregisternummer",null,null,null,{"$f":"IF(I15=\"\",\"\",IF(Werk!N2=Werk!P2,\"ü\",\"x\"))","v":""},{"$f":"IF(I15=\"\",\"\",+Werk!O10)","v":""},null,null,null,null,null,null,"<===     Voer je rijksregisternummer in met 11 opeenvolgende cijfers"]
[null,null,{"$f":"+Werk!C28","v":""}]
[null,null,"Project","Datum","Wapen","Doelgroep","H / D","Plaats","Uren","Forfaitaire dagvergoeding","Km-totaal",{"$f":"\"KmVergoeding  : \"&Km_verg& \" €/km\"","v":"KmVergoeding  :  €/km"}]
[null,null,null,null,null,null,null,null,null,{"$f":"MIN(+Werk!D15,+Werk!E15)","v":0},null,{"$f":"IFERROR(K18*Km_verg,\"\")","v":""},null,null,"<===     Specifieer hier het project / evenement waarvoor je wil vergoed worden"]
[null,null,null,null,null,null,null,null,null,{"$f":"MIN(+Werk!D16,+Werk!E16)","v":0},null,"",null,null,"                   + datum van het evenement"]
[null,null,null,null,null,null,null,null,null,{"$f":"MIN(+Werk!D17,+Werk!E17)","v":0},null,"",null,null,"                   + wapen"]
[null,null,null,null,null,null,null,null,null,{"$f":"MIN(+Werk!D18,+Werk!E18)","v":0},null,"",null,null,"                   + doelgroep"]
[null,null,null,null,null,null,null,null,null,{"$f":"MIN(+Werk!D19,+Werk!E19)","v":0},null,"",null,null,"                   + Heren / Dames of Beiden"]
[null,null,null,null,null,null,null,null,null,{"$f":"MIN(+Werk!D20,+Werk!E20)","v":0},null,"",null,null,"                   + plaats van het evenement"]
[null,null,null,null,null,null,null,null,null,{"$f":"MIN(+Werk!D21,+Werk!E21)","v":0},null,"",null,null,"                   + het aantal uren dat je hieraan besteedt hebt"]
[null,null,null,null,null,null,null,null,null,{"$f":"MIN(+Werk!D22,+Werk!E22)","v":0},null,"",null,null,"               ==> de dagvergoeding wordt automatisch berekend adhv je diploma en \"Z\"of \"W\""]
[null,null,null,null,null,null,null,null,null,{"$f":"MIN(+Werk!D23,+Werk!E23)","v":0},null,"",null,null,"                   + heb je je moeten verplaatsen met de wagen, vul dan het aantal km in"]
[null,null,null,null,null,null,null,null,null,{"$f":"MIN(+Werk!D24,+Werk!E24)","v":0},null,"",null,null,"               ==> de kilometervergoeding wordt automatisch berekent"]
[null,null,{"$f":"+Werk!G28","v":""},null,null,null,null,false,"op factuur","vergoeding",null,"verplaatsing",null,null,"<===     Stip je factuur aan dan verwachten we een aparte factuur voor de vergoeding"]
[null,null,null,null,null,null,null,null,false,{"$f":"SUM(J18:J27)","v":0},"TOTAAL:",{"$f":"SUM(L18:L27)","v":0}]
[]
[null,null,"Doelgroep: indien van toepassing vermelden leeftijdscategorie en geslacht, bv \"U13-U15 H/D\""]
[]
[null,null,"Bewijs bijgevoegd *","Omschrijving",null,null,null,null,null,"Bedrag"]
[null,null,null,null,null,null,null,null,null,null,null,null,null,null,"<===     Maakte je extra kosten, specifieer ze dan hier"]
[null,null,null,null,null,null,null,null,null,null,null,null,null,null,"       Voorbeelden zijn maaltijdkosten, reiskosten, hotelkosten, zaalhuur enz"]
[]
[null,null,null,null,null,null,null,null,null,null,null,null,null,null,"       Voeg zo veel mogelijk bewijsstukken mee"]
[null,null,null,null,null,null,null,null,null,null,null,null,null,null,"       Zonder deze bewijsstuken zal er niet vergoed worden"]
[null,null,null,null,null,null,null,null,null,null,null,null,null,null,"       Voorbeelden zijn maaltijdkosten, reiskosten, hotelkosten enz"]
[null,null,"*   Gelieve eventueel bewijsstukken toe te voegen",null,null,null,null,null,"TOTAAL:",{"$f":"SUM(J34:J39)","v":0}]
[]
[null,null,null,null,null,null,null,null,"Vergoeding",null,null,{"$f":"IF(I29=TRUE,0,J29)","v":0}]
[null,null,null,null,null,null,null,null,"Verplaatsing",null,null,{"$f":"L29","v":0}]
[null,null,null,null,null,null,null,null,"Extra",null,null,{"$f":"J40","v":0}]
[null,null,"Datum: ",{"$f":"TODAY()","v":"2024-07-23"},null,null,null,null,"ALGEMEEN TOTAAL :",null,{"$f":"SUM(L42:L44)","v":0}]
[]
[null,null," Handtekening trainer,",null,null,null,null,null,"Handtekening coördinator,"]
[]
[]
[]
[]
[]
[null,null,null,"Gelieve dit formulier terug te bezorgen aan de Vlaamse Schermbond vzw\nSpikstraat 9, 3111 Wezemaal - info@vlaamseschermbond.be"]

{"sheet":"Werk","index":1,"n_rows":271,"n_cols":36,"rows_kept":271,"cut":false,"hidden":true,"merged":[[11,22,11,23],[0,11,0,17],[0,22,0,23],[10,22,10,23]]}
[null,null,null,null,null,null,null,null,null,null,null,"Controle Rijksregisternummer",null,null,null,null,null,null,null,null,null,null,"Controle banknummer",null,null,null,null,null,null,null,null,null,"Version 22/01/2024"]
[null,null,null,null,null,null,null,null,null,null,null,"Controlegetal :",null,{"$f":"IFERROR(VALUE(RIGHT(formulier!I15,2)),\"\")","v":""},{"$f":"IF(L5=11,LEFT(P8,9),LEFT(P5&P6&P7,10))","v":""},{"$f":"IFERROR((97-MOD(O2,97)),0)","v":0},null,null,null,null,null,null,null,null,null,null,null,null,null,null,null,null,"From","To","Biccode","Name Dutch"]
[null,null,null,null,null,null,null,null,null,null,null,null,null,null,{"$f":"IFERROR(IF(formulier!I15<1010000,\"U hebt nog geen valabel Rijskregisternummer ingevoerd\",VLOOKUP(L5,M5:N9,2,FALSE)),\"U hebt nog geen valabel Rijskregisternummer ingevoerd\")","v":"U hebt nog geen valabel Rijskregisternummer ingevoerd"},null,null,null,null,null,null,null,{"$f":"+RIGHT(formulier!J14:J14,12)","v":""},null,null,null,null,null,null,null,null,null,0,49,"GEBA BE BB","BNP Paribas Fortis"]
[null,null,null,null,null,null,null,null,null,null,null,null,null,{"$f":"N5&N6&N7&N8&N9","v":""},null,null,null,null,null,null,null,null,{"$f":"VALUE(LEFT(W3,10))","v":{"$error":"#VALUE!"}},null,null,null,null,null,null,null,null,null,50,99,"GKCC BE BB","BELFIUS BANK"]
[null,null,null,null,null,null,null,null,null,null,null,{"$f":"LEN(formulier!I15)","v":0},8,{"$f":"IF(M5=$L$5,20000&+LEFT(formulier!I15,3),\"\")","v":""},{"$f":"IF(M5=$L$5,IF(ISODD(LEFT(RIGHT(formulier!$I$15,5),3)),\"Man\",\"vrouw\"),\"\")","v":""},{"$f":"IF(M5=$L$5,2000&formulier!$I$15,\"\")","v":""},{"$f":"LEN(P5)","v":0},null,null,null,null,null,{"$f":"MOD(W4,97)","v":{"$error":"#VALUE!"}},null,null,null,null,null,null,null,null,null,100,100,"NBBE BE BB 203","Nationale Bank van België"]
[null,null,null,null,null,null,null,null,null,null,null,null,9,{"$f":"IF(M6=$L$5,2000&+LEFT(formulier!I15,4),\"\")","v":""},{"$f":"IF(M6=$L$5,IF(ISODD(LEFT(RIGHT(formulier!$I$15,5),3)),\"Man\",\"vrouw\"),\"\")","v":""},{"$f":"IF(M6=$L$5,200&formulier!$I$15,\"\")","v":""},{"$f":"LEN(P6)","v":0},null,null,null,null,null,{"$f":"VALUE(+RIGHT(W3,2))","v":{"$error":"#VALUE!"}},null,null,null,null,null,null,null,null,null,101,101,"NBBE BE BB HCC","Nationale Bank van België (Hoofdkas)"]
[null,null,null,null,null,null,null,null,null,null,null,null,10,{"$f":"IF(M7=$L$5,\"200\"&+LEFT(formulier!I15,5),\"\")","v":""},{"$f":"IF(M7=$L$5,IF(ISODD(LEFT(RIGHT(formulier!$I$15,5),3)),\"Man\",\"vrouw\"),\"\")","v":""},{"$f":"IF(M7=$L$5,20&formulier!$I$15,\"\")","v":""},{"$f":"LEN(P7)","v":0},null,null,null,null,null,null,null,null,null,null,null,null,null,null,null,102,102,"nav","Uitwisselingscentrum en Verrekening (U.C.V.)"]
[null,null,null,null,null,null,null,null,null,null,null,null,11,{"$f":"IF(M8=$L$5,IF(VALUE(LEFT(formulier!I15,2))<30,20&+LEFT(formulier!I15,6),19&+LEFT(formulier!I15,6)),\"\")","v":""},{"$f":"IF(M8=$L$5,IF(ISODD(LEFT(RIGHT(formulier!$I$15,5),3)),\"Man\",\"vrouw\"),\"\")","v":""},{"$f":"IF(M8=$L$5,formulier!$I$15,\"\")","v":""},{"$f":"LEN(P8)","v":0},null,null,null,null,null,{"$f":"W6=W5","v":{"$error":"#VALUE!"}},null,null,null,null,null,null,null,null,null,103,108,"NICA BE BB","Crelan"]
[null,"Verloningscategorieen","Omschrijving","Uur V","UuZ","MaxV","MaxZ",null,"VRIJWILLIGERS",null,null,null,12,{"$f":"IF(M9=$L$5,\"RRN Niet geldig\",\"\")","v":""},null,null,{"$f":"LEN(P9)","v":0},null,null,null,null,null,{"$f":"+IF(formulier!I14<>\"BE\",\"Buitenlands nummer\",\"\")","v":""},{"$f":"IF(formulier!I14<>\"BE\",1,0)","v":0},null,null,null,null,null,null,null,null,109,110,"CTBK BE BX","Beobank"]
[null,"CAT 0","Start2coach",0,0,{"$f":"+Tabel2[[#This Row],[Uur V]]*6","v":0},{"$f":"+Tabel2[[#This Row],[UuZ]]*6","v":0},null,"ZELFSTANDIGEN",null,null,null,null,null,{"$f":"IFERROR(+IF(N2=P2,\"U bent \"&O5&O6&O7&O8&O9,\"Fout RRN\"),\"\")","v":"Fout RRN"},null,null,null,null,null,null,null,{"$f":"IF(LEN(BRN)=14,VALUE(MID(BRN,3,3)),VALUE(MID(BRN,2,3)))","v":432},null,null,null,null,null,null,null,null,null,111,111,"ABER BE 22","Bank J. Van Breda & C°"]
[null,"CAT 1","Initiator, Scheidsrechtermentor",11,18,{"$f":"+Tabel2[[#This Row],[Uur V]]*6","v":66},{"$f":"+Tabel2[[#This Row],[UuZ]]*6","v":108},null,null,null,null,null,null,null,null,null,null,null,null,null,null,null,{"$f":"VLOOKUP(W10,banken,3,TRUE)","v":"KRED BE BB"},null,null,null,null,null,null,null,null,null,112,112,"VRIJ","VRIJ"]
[null,"CAT 2","Trainer C",13,20,{"$f":"+Tabel2[[#This Row],[Uur V]]*6","v":78},{"$f":"+Tabel2[[#This Row],[UuZ]]*6","v":120},null,null,null,null,null,null,null,null,null,null,null,null,null,null,null,{"$f":"VLOOKUP(W10,banken,4,TRUE)","v":"KBC Bank"},null,null,null,null,null,null,null,null,null,113,114,"CTBK BE BX","Beobank"]
[null,"CAT 3","Trainer A /B",15,22,{"$f":"+Tabel2[[#This Row],[Uur V]]*6","v":90},{"$f":"+Tabel2[[#This Row],[UuZ]]*6","v":132},null,null,null,null,null,null,null,null,null,null,null,null,null,null,null,null,null,null,null,null,null,null,null,null,null,115,118,"VRIJ","VRIJ"]
[null,null,null,null,null,null,null,null,null,null,null,null,null,null,null,null,null,null,null,null,null,null,null,null,null,null,null,null,null,null,null,null,119,124,"CTBK BE BX","Beobank"]
[null,{"$f":"IFERROR(IF(LEFT(formulier!$G$7,1)=\"Z\",VLOOKUP(formulier!I$13,Tabel2[[Verloningscategorieen]:[UuZ]],4,FALSE),VLOOKUP(formulier!I$13,Tabel2[[Verloningscategorieen]:[UuZ]],3,FALSE)),0)","v":18},{"$f":"+B15*formulier!I18","v":0},{"$f":"IF(C15>6*B15,6*B15,+C15)","v":0},{"$f":"IF(AND(formulier!H$8=FALSE,Werk!D15>40),40,+D15)","v":0},null,null,null,"Huur Locatie",null,null,null,null,"Degen",null,"U13-U15",null,"BE","België",null,null,null,null,null,null,null,null,null,null,null,null,null,125,126,"CPHB BE 75","Banque CPH"]
[null,{"$f":"IFERROR(IF(LEFT(formulier!$G$7,1)=\"Z\",VLOOKUP(formulier!I$13,Tabel2[[Verloningscategorieen]:[UuZ]],4,FALSE),VLOOKUP(formulier!I$13,Tabel2[[Verloningscategorieen]:[UuZ]],3,FALSE)),0)","v":18},{"$f":"+B16*formulier!I19","v":0},{"$f":"IF(C16>6*B16,6*B16,+C16)","v":0},{"$f":"IF(AND(formulier!H$8=FALSE,Werk!D16>40),40,+D16)","v":0},null,null,null,"Inschrijving ploeg",null,null,null,null,"Sabel",null,"U17-Sen",null,"DK","Denemarken",null,null,null,null,null,null,null,null,null,null,null,null,null,127,127,"CTBK BE BX","Beobank"]
[null,{"$f":"IFERROR(IF(LEFT(formulier!$G$7,1)=\"Z\",VLOOKUP(formulier!I$13,Tabel2[[Verloningscategorieen]:[UuZ]],4,FALSE),VLOOKUP(formulier!I$13,Tabel2[[Verloningscategorieen]:[UuZ]],3,FALSE)),0)","v":18},{"$f":"+B17*formulier!I20","v":0},0,{"$f":"IF(AND(formulier!H$8=FALSE,Werk!D17>40),40,+D17)","v":0},null,null,null,"Reisonkosten (km auto)",null,null,null,null,"Floret",null,"U13",null,"DE","Duitsland",null,null,null,null,null,null,null,null,null,null,null,null,null,128,128,"VRIJ","VRIJ"]
[null,{"$f":"IFERROR(IF(LEFT(formulier!$G$7,1)=\"Z\",VLOOKUP(formulier!I$13,Tabel2[[Verloningscategorieen]:[UuZ]],4,FALSE),VLOOKUP(formulier!I$13,Tabel2[[Verloningscategorieen]:[UuZ]],3,FALSE)),0)","v":18},{"$f":"+B18*formulier!I21","v":0},0,{"$f":"IF(AND(formulier!H$8=FALSE,Werk!D18>40),40,+D18)","v":0},null,null,null,"Reisonkosten maaltijd",null,null,null,null,null,null,"U15",null,"FR","Frankrijk",null,null,null,null,null,null,null,null,null,null,null,null,null,129,129,"CTBK BE BX","Beobank"]
[null,{"$f":"IFERROR(IF(LEFT(formulier!$G$7,1)=\"Z\",VLOOKUP(formulier!I$13,Tabel2[[Verloningscategorieen]:[UuZ]],4,FALSE),VLOOKUP(formulier!I$13,Tabel2[[Verloningscategorieen]:[UuZ]],3,FALSE)),0)","v":18},{"$f":"+B19*formulier!I22","v":0},0,{"$f":"IF(AND(formulier!H$8=FALSE,Werk!D19>40),40,+D19)","v":0},null,null,null,"Reisonkosten overnachting",null,null,null,null,"H",null,"U17",null,"GB","Groot-Brittanië",null,null,null,null,null,null,null,null,null,null,null,null,null,130,130,"DIGE BE B2","Digiteal SA"]
[null,{"$f":"IFERROR(IF(LEFT(formulier!$G$7,1)=\"Z\",VLOOKUP(formulier!I$13,Tabel2[[Verloningscategorieen]:[UuZ]],4,FALSE),VLOOKUP(formulier!I$13,Tabel2[[Verloningscategorieen]:[UuZ]],3,FALSE)),0)","v":18},{"$f":"+B20*formulier!I23","v":0},0,{"$f":"IF(AND(formulier!H$8=FALSE,Werk!D20>40),40,+D20)","v":0},null,null,null,"Reisonkosten Trein/Vliegtuig",null,null,null,null,"D",null,"U20",null,"LU","Luxemburg",null,null,null,null,null,null,null,null,null,null,null,null,null,131,131,"CTBK BE BX","Beobank"]
[null,{"$f":"IFERROR(IF(LEFT(formulier!$G$7,1)=\"Z\",VLOOKUP(formulier!I$13,Tabel2[[Verloningscategorieen]:[UuZ]],4,FALSE),VLOOKUP(formulier!I$13,Tabel2[[Verloningscategorieen]:[UuZ]],3,FALSE)),0)","v":18},{"$f":"+B21*formulier!I24","v":0},0,{"$f":"IF(AND(formulier!H$8=FALSE,Werk!D21>40),40,+D21)","v":0},null,null,null,"Reisonkosten Tol/Parking",null,null,null,null,"H / D",null,"U23",null,"NL","Nederland",null,null,null,null,null,null,null,null,null,null,null,null,null,132,132,"BNAG BE BB","Bank Nagelmackers"]
[null,{"$f":"IFERROR(IF(LEFT(formulier!$G$7,1)=\"Z\",VLOOKUP(formulier!I$13,Tabel2[[Verloningscategorieen]:[UuZ]],4,FALSE),VLOOKUP(formulier!I$13,Tabel2[[Verloningscategorieen]:[UuZ]],3,FALSE)),0)","v":18},{"$f":"+B22*formulier!I25","v":0},0,{"$f":"IF(AND(formulier!H$8=FALSE,Werk!D22>40),40,+D22)","v":0},null,null,null,"Overige kost volgens bijlage *",null,null,null,null,null,null,"Sen",null,null,null,null,null,null,null,null,null,null,null,null,null,null,null,null,133,134,"CTBK BE BX","Beobank"]
[null,{"$f":"IFERROR(IF(LEFT(formulier!$G$7,1)=\"Z\",VLOOKUP(formulier!I$13,Tabel2[[Verloningscategorieen]:[UuZ]],4,FALSE),VLOOKUP(formulier!I$13,Tabel2[[Verloningscategorieen]:[UuZ]],3,FALSE)),0)","v":18},{"$f":"+B23*formulier!I26","v":0},0,{"$f":"IF(AND(formulier!H$8=FALSE,Werk!D23>40),40,+D23)","v":0},null,null,null,null,null,null,null,null,null,null,"All",null,null,null,null,null,null,null,null,null,null,null,null,null,null,null,null,135,136,"VRIJ","VRIJ"]
[null,{"$f":"IFERROR(IF(LEFT(formulier!$G$7,1)=\"Z\",VLOOKUP(formulier!I$13,Tabel2[[Verloningscategorieen]:[UuZ]],4,FALSE),VLOOKUP(formulier!I$13,Tabel2[[Verloningscategorieen]:[UuZ]],3,FALSE)),0)","v":18},{"$f":"+B24*formulier!I27","v":0},0,{"$f":"IF(AND(formulier!H$8=FALSE,Werk!D24>40),40,+D24)","v":0},null,null,null,"Ja",null,null,null,null,null,null,null,null,null,null,null,null,null,null,null,null,null,null,null,null,null,null,null,137,137,"GEBA BE BB","BNP Paribas Fortis"]
[null,null,null,null,null,null,null,null,"Neen",null,null,null,null,null,null,null,null,null,null,null,null,null,null,null,null,null,null,null,null,null,null,null,138,138,"NAP","Onbeschikbaar"]
[null,null,null,null,null,null,null,null,null,null,null,null,null,null,null,null,null,null,null,null,null,null,null,null,null,null,null,null,null,null,null,null,139,139,"VRIJ","VRIJ"]
[null,null,null,null,null,null,null,null,null,null,null,null,null,null,null,null,null,null,null,null,null,null,null,null,null,null,null,null,null,null,null,null,140,149,"GEBA BE BB","BNP Paribas Fortis"]
[null,null,{"$f":"IF(AND(formulier!H8=FALSE,OR(D15>40,D16>40,D17>40,D18>40,D19>40,D20>40,D21>40,D22>40,D23>40,D24>40)),\"Dagtotaal is hoger dan 40 €, CORRIGEER !!!\",\"\")","v":""},null,null,null,{"$f":"IF(I30>0,\"Je gebruikte meermaals dezelfde datum. Corrigeer !\",\"\")","v":""},null,null,null,null,null,null,null,null,null,null,null,null,null,null,null,null,null,null,null,null,null,null,null,null,null,150,150,"BCMC BE BB","Bancontact Payconiq Company"]
[null,null,null,null,null,null,null,null,null,null,null,null,null,null,null,null,null,null,null,null,null,null,null,null,null,null,null,null,null,null,null,null,151,170,"VRIJ","VRIJ"]
[null,null,null,null,null,null,null,null,{"$f":"+SUM(I32:I41)","v":0},null,null,null,null,null,null,null,null,null,null,null,null,null,null,null,null,null,null,null,null,null,null,null,171,171,"CPHB BE 75",""]
[null,null,null,null,null,null,null,null,null,null,null,null,null,null,null,null,null,null,null,null,null,null,null,null,null,null,null,null,null,null,null,null,172,174,"VRIJ","VRIJ"]
[null,null,"Start2coach","CAT 0",null,null,{"$f":"+formulier!D18","v":"00:00:00"},{"$f":"IF(G32<>0,+COUNTIF($G$32:$G$41,G32),0)","v":0},{"$f":"+IF(H32>1,1,0)","v":0},null,null,null,null,null,null,null,null,null,null,null,null,null,null,null,null,null,null,null,null,null,null,null,175,175,"NAV",""]
[null,null,"AM","CAT 0",null,null,{"$f":"+formulier!D19","v":"00:00:00"},{"$f":"IF(G33<>0,+COUNTIF($G$32:$G$41,G33),0)","v":0},{"$f":"+IF(H33>1,1,0)","v":0},null,null,null,null,null,null,null,null,null,null,null,null,null,null,null,null,null,null,null,null,null,null,null,176,176,"BSCH BE BB RET","Santander Consumer Finance – Succursale en Belgique/Bijkantoor in België"]
[null,null,"Geen diploma","CAT 0",null,null,{"$f":"+formulier!D20","v":"00:00:00"},0,0,null,null,null,null,null,null,null,null,null,null,null,null,null,null,null,null,null,null,null,null,null,null,null,177,184,"VRIJ","VRIJ"]
[null,null,"Initiator","CAT 1",null,null,{"$f":"+formulier!D21","v":"00:00:00"},0,0,null,null,null,null,null,null,null,null,null,null,null,null,null,null,null,null,null,null,null,null,null,null,null,185,185,"BBRU BE BB","ING België"]
[null,null,"Diploma LO","CAT 1",null,null,{"$f":"+formulier!D22","v":"00:00:00"},0,0,null,null,null,null,null,null,null,null,null,null,null,null,null,null,null,null,null,null,null,null,null,null,null,186,188,"VRIJ","VRIJ"]
[null,null,"Scheidsrechtermentor","CAT 1",null,null,{"$f":"+formulier!D23","v":"00:00:00"},0,0,null,null,null,null,null,null,null,null,null,null,null,null,null,null,null,null,null,null,null,null,null,null,null,189,189,"SMBC BE BB","Sumitomo Mitsui Banking Corporation (SMBC)"]
[null,null,"Docent","CAT 1",null,null,{"$f":"+formulier!D24","v":"00:00:00"},0,0,null,null,null,null,null,null,null,null,null,null,null,null,null,null,null,null,null,null,null,null,null,null,null,190,199,"CREG BE BB",""]
[null,null,"Athlete mentor","CAT 1",null,null,{"$f":"+formulier!D25","v":"00:00:00"},0,0,null,null,null,null,null,null,null,null,null,null,null,null,null,null,null,null,null,null,null,null,null,null,null,200,214,"GEBA BE BB","BNP Paribas Fortis"]
[null,null,"Super star","CAT 1",null,null,{"$f":"+formulier!D26","v":"00:00:00"},0,0,null,null,null,null,null,null,null,null,null,null,null,null,null,null,null,null,null,null,null,null,null,null,null,215,219,"VRIJ","VRIJ"]
[null,null,"Trainer C","CAT 2",null,null,{"$f":"+formulier!D27","v":"00:00:00"},0,0,null,null,null,null,null,null,null,null,null,null,null,null,null,null,null,null,null,null,null,null,null,null,null,220,299,"GEBA BE BB","BNP Paribas Fortis"]
[null,null,"Trainer A/B","CAT 3",null,null,null,null,null,null,null,null,null,null,null,null,null,null,null,null,null,null,null,null,null,null,null,null,null,null,null,null,300,399,"BBRU BE BB","ING België"]
[null,null,"Initiator met diploma LO","CAT 3",null,null,null,null,null,null,null,null,null,null,null,null,null,null,null,null,null,null,null,null,null,null,null,null,null,null,null,null,400,499,"KRED BE BB","KBC Bank"]
[null,null,"Trainer C met diploma LO","CAT 3",null,null,null,null,null,null,null,null,null,null,null,null,null,null,null,null,null,null,null,null,null,null,null,null,null,null,null,null,500,500,"MTPS BE BB","Moneytrans Payment Services"]
[null,null,null,null,null,null,null,null,null,null,null,null,null,null,null,null,null,null,null,null,null,null,null,null,null,null,null,null,null,null,null,null,501,501,"DHBN BE BB","Demir-Halk Bank (Nederland) (DHB)"]
[null,null,null,null,null,null,null,null,null,null,null,null,null,null,null,null,null,null,null,null,null,null,null,null,null,null,null,null,null,null,null,null,502,503,"VRIJ","VRIJ"]
[null,null,null,null,null,null,null,null,null,null,null,null,null,null,null,null,null,null,null,null,null,null,null,null,null,null,null,null,null,null,null,null,504,504,"PANX BE B1","Unifiedpost Payments"]
[null,null,null,null,null,null,null,null,null,null,null,null,null,null,null,null,null,null,null,null,null,null,null,null,null,null,null,null,null,null,null,null,505,506,"VRIJ","VRIJ"]
[null,null,null,null,null,null,null,null,null,null,null,null,null,null,null,null,null,null,null,null,null,null,null,null,null,null,null,null,null,null,null,null,507,507,"DIER BE 21","Dierickx, Leys & Cie Effectenbank"]
[null,null,null,null,null,null,null,null,null,null,null,null,null,null,null,null,null,null,null,null,null,null,null,null,null,null,null,null,null,null,null,null,508,508,"PARB BE BZ MDC","BNP Paribas SA, Belgium Branch – Securities Services business"]
[null,null,null,null,null,null,null,null,null,null,null,null,null,null,null,null,null,null,null,null,null,null,null,null,null,null,null,null,null,null,null,null,509,509,"ABNA BE 2A IPC","ABN AMRO Bank N.V."]
[null,null,null,null,null,null,null,null,null,null,null,null,null,null,null,null,null,null,null,null,null,null,null,null,null,null,null,null,null,null,null,null,510,510,"VAPE BE 22","VAN DE PUT & CO Privaatbankiers"]
[null,null,null,null,null,null,null,null,null,null,null,null,null,null,null,null,null,null,null,null,null,null,null,null,null,null,null,null,null,null,null,null,511,511,"VRIJ","VRIJ"]
[null,null,null,null,null,null,null,null,null,null,null,null,null,null,null,null,null,null,null,null,null,null,null,null,null,null,null,null,null,null,null,null,512,512,"DNIB BE 21","NIBC BANK"]
[null,null,null,null,null,null,null,null,null,null,null,null,null,null,null,null,null,null,null,null,null,null,null,null,null,null,null,null,null,null,null,null,513,513,"ABNA BE 2A IPC","ABN AMRO Bank N.V."]
[null,null,null,null,null,null,null,null,null,null,null,null,null,null,null,null,null,null,null,null,null,null,null,null,null,null,null,null,null,null,null,null,514,514,"PUIL BE BB","Puilaetco Branch of Quintet Private Bank SA"]
[null,null,null,null,null,null,null,null,null,null,null,null,null,null,null,null,null,null,null,null,null,null,null,null,null,null,null,null,null,null,null,null,515,515,"IRVT BE BB","The Bank of New York Mellon NV/SA"]
[null,null,null,null,null,null,null,null,null,null,null,null,null,null,null,null,null,null,null,null,null,null,null,null,null,null,null,null,null,null,null,null,516,519,"VRIJ","VRIJ"]
[null,null,null,null,null,null,null,null,null,null,null,null,null,null,null,null,null,null,null,null,null,null,null,null,null,null,null,null,null,null,null,null,520,520,"NAP","Onbeschikbaar"]
[null,null,null,null,null,null,null,null,null,null,null,null,null,null,null,null,null,null,null,null,null,null,null,null,null,null,null,null,null,null,null,null,521,521,"FVLB BE 22","F. van Lanschot Bankiers"]
[null,null,null,null,null,null,null,null,null,null,null,null,null,null,null,null,null,null,null,null,null,null,null,null,null,null,null,null,null,null,null,null,522,522,"UTWB BE BB","United Taiwan Bank"]
[null,null,null,null,null,null,null,null,null,null,null,null,null,null,null,null,null,null,null,null,null,null,null,null,null,null,null,null,null,null,null,null,523,523,"TRIO BE BB","Triodos Bank"]
[null,null,null,null,null,null,null,null,null,null,null,null,null,null,null,null,null,null,null,null,null,null,null,null,null,null,null,null,null,null,null,null,524,524,"WAFA BE BB","Attijariwafa bank Europe"]
[null,null,null,null,null,null,null,null,null,null,null,null,null,null,null,null,null,null,null,null,null,null,null,null,null,null,null,null,null,null,null,null,525,525,"FVLB BE 22","F. van Lanschot Bankiers"]
[null,null,null,null,null,null,null,null,null,null,null,null,null,null,null,null,null,null,null,null,null,null,null,null,null,null,null,null,null,null,null,null,526,537,"VRIJ","VRIJ"]
[null,null,null,null,null,null,null,null,null,null,null,null,null,null,null,null,null,null,null,null,null,null,null,null,null,null,null,null,null,null,null,null,538,538,"nav","Hoist Finance AB"]
[null,null,null,null,null,null,null,null,null,null,null,null,null,null,null,null,null,null,null,null,null,null,null,null,null,null,null,null,null,null,null,null,539,539,"NAP","Onbeschikbaar"]
[null,null,null,null,null,null,null,null,null,null,null,null,null,null,null,null,null,null,null,null,null,null,null,null,null,null,null,null,null,null,null,null,540,540,"VRIJ","VRIJ"]
[null,null,null,null,null,null,null,null,null,null,null,null,null,null,null,null,null,null,null,null,null,null,null,null,null,null,null,null,null,null,null,null,541,541,"BKID BE 22","BANK OF INDIA"]
[null,null,null,null,null,null,null,null,null,null,null,null,null,null,null,null,null,null,null,null,null,null,null,null,null,null,null,null,null,null,null,null,542,544,"VRIJ","VRIJ"]
[null,null,null,null,null,null,null,null,null,null,null,null,null,null,null,null,null,null,null,null,null,null,null,null,null,null,null,null,null,null,null,null,545,545,"NAP","Onbeschikbaar"]
[null,null,null,null,null,null,null,null,null,null,null,null,null,null,null,null,null,null,null,null,null,null,null,null,null,null,null,null,null,null,null,null,546,546,"WAFA BE BB","Attijariwafa bank Europe"]
[null,null,null,null,null,null,null,null,null,null,null,null,null,null,null,null,null,null,null,null,null,null,null,null,null,null,null,null,null,null,null,null,547,547,"VRIJ","VRIJ"]
[null,null,null,null,null,null,null,null,null,null,null,null,null,null,null,null,null,null,null,null,null,null,null,null,null,null,null,null,null,null,null,null,548,548,"LOCY BE BB","Lombard Odier (Europe)"]
[null,null,null,null,null,null,null,null,null,null,null,null,null,null,null,null,null,null,null,null,null,null,null,null,null,null,null,null,null,null,null,null,549,549,"CHAS BE BX","J.P. Morgan SE -Brussels Branch"]
[null,null,null,null,null,null,null,null,null,null,null,null,null,null,null,null,null,null,null,null,null,null,null,null,null,null,null,null,null,null,null,null,550,560,"GKCC BE BB","BELFIUS BANK"]
[null,null,null,null,null,null,null,null,null,null,null,null,null,null,null,null,null,null,null,null,null,null,null,null,null,null,null,null,null,null,null,null,561,561,"VRIJ","VRIJ"]
[null,null,null,null,null,null,null,null,null,null,null,null,null,null,null,null,null,null,null,null,null,null,null,null,null,null,null,null,null,null,null,null,562,569,"GKCC BE BB","BELFIUS BANK"]
[null,null,null,null,null,null,null,null,null,null,null,null,null,null,null,null,null,null,null,null,null,null,null,null,null,null,null,null,null,null,null,null,570,579,"CITI BE BX","Citibank Europe Plc - Belgium Branch"]
[null,null,null,null,null,null,null,null,null,null,null,null,null,null,null,null,null,null,null,null,null,null,null,null,null,null,null,null,null,null,null,null,580,580,"VRIJ","VRIJ"]
[null,null,null,null,null,null,null,null,null,null,null,null,null,null,null,null,null,null,null,null,null,null,null,null,null,null,null,null,null,null,null,null,581,581,"MHCB BE BB","Mizuho Bank Europe N.V. Brussels Branch"]
[null,null,null,null,null,null,null,null,null,null,null,null,null,null,null,null,null,null,null,null,null,null,null,null,null,null,null,null,null,null,null,null,582,582,"VRIJ","VRIJ"]
[null,null,null,null,null,null,null,null,null,null,null,null,null,null,null,null,null,null,null,null,null,null,null,null,null,null,null,null,null,null,null,null,583,583,"DEGR BE BB","Banque Degroof Petercam Luxembourg"]
[null,null,null,null,null,null,null,null,null,null,null,null,null,null,null,null,null,null,null,null,null,null,null,null,null,null,null,null,null,null,null,null,584,584,"VRIJ","VRIJ"]
[null,null,null,null,null,null,null,null,null,null,null,null,null,null,null,null,null,null,null,null,null,null,null,null,null,null,null,null,null,null,null,null,585,585,"RCBP BE BB",""]
[null,null,null,null,null,null,null,null,null,null,null,null,null,null,null,null,null,null,null,null,null,null,null,null,null,null,null,null,null,null,null,null,586,586,"CFFR BE B1",""]
[null,null,null,null,null,null,null,null,null,null,null,null,null,null,null,null,null,null,null,null,null,null,null,null,null,null,null,null,null,null,null,null,587,587,"BIBL BE 21","BinckBank"]
[null,null,null,null,null,null,null,null,null,null,null,null,null,null,null,null,null,null,null,null,null,null,null,null,null,null,null,null,null,null,null,null,588,588,"CMCI BE B1 BTB","Banque Transatlantique Belgium"]
[null,null,null,null,null,null,null,null,null,null,null,null,null,null,null,null,null,null,null,null,null,null,null,null,null,null,null,null,null,null,null,null,589,589,"VRIJ","VRIJ"]
[null,null,null,null,null,null,null,null,null,null,null,null,null,null,null,null,null,null,null,null,null,null,null,null,null,null,null,null,null,null,null,null,590,594,"BSCH BE BB","Santander Consumer Finance – Succursale en Belgique/Bijkantoor in België"]
[null,null,null,null,null,null,null,null,null,null,null,null,null,null,null,null,null,null,null,null,null,null,null,null,null,null,null,null,null,null,null,null,595,601,"CTBK BE BX","Beobank"]
[null,null,null,null,null,null,null,null,null,null,null,null,null,null,null,null,null,null,null,null,null,null,null,null,null,null,null,null,null,null,null,null,602,604,"VRIJ","VRIJ"]
[null,null,null,null,null,null,null,null,null,null,null,null,null,null,null,null,null,null,null,null,null,null,null,null,null,null,null,null,null,null,null,null,605,605,"BKCH BE BB","Bank of China (Europe) SA Brussels Branch"]
[null,null,null,null,null,null,null,null,null,null,null,null,null,null,null,null,null,null,null,null,null,null,null,null,null,null,null,null,null,null,null,null,606,606,"VRIJ","VRIJ"]
[null,null,null,null,null,null,null,null,null,null,null,null,null,null,null,null,null,null,null,null,null,null,null,null,null,null,null,null,null,null,null,null,607,607,"ICBK BE BB","Industrial and Commercial Bank of China (Europe)"]
[null,null,null,null,null,null,null,null,null,null,null,null,null,null,null,null,null,null,null,null,null,null,null,null,null,null,null,null,null,null,null,null,608,609,"VRIJ","VRIJ"]
[null,null,null,null,null,null,null,null,null,null,null,null,null,null,null,null,null,null,null,null,null,null,null,null,null,null,null,null,null,null,null,null,610,613,"DEUT BE BE","Deutsche Bank AG"]
[null,null,null,null,null,null,null,null,null,null,null,null,null,null,null,null,null,null,null,null,null,null,null,null,null,null,null,null,null,null,null,null,614,623,"VRIJ","VRIJ"]
[null,null,null,null,null,null,null,null,null,null,null,null,null,null,null,null,null,null,null,null,null,null,null,null,null,null,null,null,null,null,null,null,624,625,"GKCC BE BB","BELFIUS BANK"]
[null,null,null,null,null,null,null,null,null,null,null,null,null,null,null,null,null,null,null,null,null,null,null,null,null,null,null,null,null,null,null,null,626,629,"VRIJ","VRIJ"]
[null,null,null,null,null,null,null,null,null,null,null,null,null,null,null,null,null,null,null,null,null,null,null,null,null,null,null,null,null,null,null,null,630,631,"BBRU BE BB","ING België"]
[null,null,null,null,null,null,null,null,null,null,null,null,null,null,null,null,null,null,null,null,null,null,null,null,null,null,null,null,null,null,null,null,632,633,"VRIJ","VRIJ"]
[null,null,null,null,null,null,null,null,null,null,null,null,null,null,null,null,null,null,null,null,null,null,null,null,null,null,null,null,null,null,null,null,634,636,"BNAG BE BB","Bank Nagelmackers"]
[null,null,null,null,null,null,null,null,null,null,null,null,null,null,null,null,null,null,null,null,null,null,null,null,null,null,null,null,null,null,null,null,637,637,"VRIJ","VRIJ"]
[null,null,null,null,null,null,null,null,null,null,null,null,null,null,null,null,null,null,null,null,null,null,null,null,null,null,null,null,null,null,null,null,638,638,"GKCC BE BB","BELFIUS BANK"]
[null,null,null,null,null,null,null,null,null,null,null,null,null,null,null,null,null,null,null,null,null,null,null,null,null,null,null,null,null,null,null,null,639,639,"VRIJ","VRIJ"]
[null,null,null,null,null,null,null,null,null,null,null,null,null,null,null,null,null,null,null,null,null,null,null,null,null,null,null,null,null,null,null,null,640,640,"ADIA BE 22","KBC Bank N.V. Business Center Diamant"]
[null,null,null,null,null,null,null,null,null,null,null,null,null,null,null,null,null,null,null,null,null,null,null,null,null,null,null,null,null,null,null,null,641,641,"VRIJ","VRIJ"]
[null,null,null,null,null,null,null,null,null,null,null,null,null,null,null,null,null,null,null,null,null,null,null,null,null,null,null,null,null,null,null,null,642,642,"BBVA BE BB","Banco Bilbao Vizcaya Argentaria"]
[null,null,null,null,null,null,null,null,null,null,null,null,null,null,null,null,null,null,null,null,null,null,null,null,null,null,null,null,null,null,null,null,643,643,"BMPB BE BB","Aion"]
[null,null,null,null,null,null,null,null,null,null,null,null,null,null,null,null,null,null,null,null,null,null,null,null,null,null,null,null,null,null,null,null,644,644,"NAV","FCA Bank S.p.A."]
[null,null,null,null,null,null,null,null,null,null,null,null,null,null,null,null,null,null,null,null,null,null,null,null,null,null,null,null,null,null,null,null,645,645,"JVBA BE 22","Bank J. Van Breda & C°"]
[null,null,null,null,null,null,null,null,null,null,null,null,null,null,null,null,null,null,null,null,null,null,null,null,null,null,null,null,null,null,null,null,646,647,"BNAG BE BB","Bank Nagelmackers"]
[null,null,null,null,null,null,null,null,null,null,null,null,null,null,null,null,null,null,null,null,null,null,null,null,null,null,null,null,null,null,null,null,648,648,"BMPB BE BB VOD","Aion"]
[null,null,null,null,null,null,null,null,null,null,null,null,null,null,null,null,null,null,null,null,null,null,null,null,null,null,null,null,null,null,null,null,649,649,"CEPA BE B2",""]
[null,null,null,null,null,null,null,null,null,null,null,null,null,null,null,null,null,null,null,null,null,null,null,null,null,null,null,null,null,null,null,null,650,650,"REVO BE B2 XXX","Revolut Bank UAB Belgian branch"]
[null,null,null,null,null,null,null,null,null,null,null,null,null,null,null,null,null,null,null,null,null,null,null,null,null,null,null,null,null,null,null,null,651,651,"KEYT BE BB","Arkéa Direct Bank (nom commercial / commerciële naam: Keytrade Bank)"]
[null,null,null,null,null,null,null,null,null,null,null,null,null,null,null,null,null,null,null,null,null,null,null,null,null,null,null,null,null,null,null,null,652,652,"BBRU BE BB","ING België"]
[null,null,null,null,null,null,null,null,null,null,null,null,null,null,null,null,null,null,null,null,null,null,null,null,null,null,null,null,null,null,null,null,653,653,"BARC BE BB","Barclays Bank Ireland Plc Brussels Branch"]
[null,null,null,null,null,null,null,null,null,null,null,null,null,null,null,null,null,null,null,null,null,null,null,null,null,null,null,null,null,null,null,null,654,654,"nav",""]
[null,null,null,null,null,null,null,null,null,null,null,null,null,null,null,null,null,null,null,null,null,null,null,null,null,null,null,null,null,null,null,null,655,656,"VRIJ","VRIJ"]
[null,null,null,null,null,null,null,null,null,null,null,null,null,null,null,null,null,null,null,null,null,null,null,null,null,null,null,null,null,null,null,null,657,657,"GKCC BE BB","BELFIUS BANK"]
[null,null,null,null,null,null,null,null,null,null,null,null,null,null,null,null,null,null,null,null,null,null,null,null,null,null,null,null,null,null,null,null,658,658,"HABB BE BB","Habib Bank"]
[null,null,null,null,null,null,null,null,null,null,null,null,null,null,null,null,null,null,null,null,null,null,null,null,null,null,null,null,null,null,null,null,659,662,"VRIJ","VRIJ"]
[null,null,null,null,null,null,null,null,null,null,null,null,null,null,null,null,null,null,null,null,null,null,null,null,null,null,null,null,null,null,null,null,663,663,"BMEU BE B1","BMCE Euro Services"]
[null,null,null,null,null,null,null,null,null,null,null,null,null,null,null,null,null,null,null,null,null,null,null,null,null,null,null,null,null,null,null,null,664,664,"BCDM BE BB","Banque Chaabi du Maroc"]
[null,null,null,null,null,null,null,null,null,null,null,null,null,null,null,null,null,null,null,null,null,null,null,null,null,null,null,null,null,null,null,null,665,665,"VRIJ","VRIJ"]
[null,null,null,null,null,null,null,null,null,null,null,null,null,null,null,null,null,null,null,null,null,null,null,null,null,null,null,null,null,null,null,null,666,666,"nav","WORLDLINE NV"]
[null,null,null,null,null,null,null,null,null,null,null,null,null,null,null,null,null,null,null,null,null,null,null,null,null,null,null,null,null,null,null,null,667,667,"CMCI BE B1 CIC","Crédit Industriel et Commercial - Succursale de Bruxelles"]
[null,null,null,null,null,null,null,null,null,null,null,null,null,null,null,null,null,null,null,null,null,null,null,null,null,null,null,null,null,null,null,null,668,668,"SBIN BE 2X","State Bank of India"]
[null,null,null,null,null,null,null,null,null,null,null,null,null,null,null,null,null,null,null,null,null,null,null,null,null,null,null,null,null,null,null,null,669,669,"nav","WORLDLINE NV"]
[null,null,null,null,null,null,null,null,null,null,null,null,null,null,null,null,null,null,null,null,null,null,null,null,null,null,null,null,null,null,null,null,670,670,"NYA","CNH Industrial Capital EUROPE"]
[null,null,null,null,null,null,null,null,null,null,null,null,null,null,null,null,null,null,null,null,null,null,null,null,null,null,null,null,null,null,null,null,671,671,"EURB BE 99","Europabank"]
[null,null,null,null,null,null,null,null,null,null,null,null,null,null,null,null,null,null,null,null,null,null,null,null,null,null,null,null,null,null,null,null,672,672,"GKCC BE BB","BELFIUS BANK"]
[null,null,null,null,null,null,null,null,null,null,null,null,null,null,null,null,null,null,null,null,null,null,null,null,null,null,null,null,null,null,null,null,673,673,"BBRU BE BB","ING België"]
[null,null,null,null,null,null,null,null,null,null,null,null,null,null,null,null,null,null,null,null,null,null,null,null,null,null,null,null,null,null,null,null,674,674,"ABNA BE 2A IDJ","ABN AMRO Bank N.V."]
[null,null,null,null,null,null,null,null,null,null,null,null,null,null,null,null,null,null,null,null,null,null,null,null,null,null,null,null,null,null,null,null,675,675,"BYBB BE BB","Byblos Bank Europe"]
[null,null,null,null,null,null,null,null,null,null,null,null,null,null,null,null,null,null,null,null,null,null,null,null,null,null,null,null,null,null,null,null,676,676,"DEGR BE BB","Bank Degroof Petercam"]
[null,null,null,null,null,null,null,null,null,null,null,null,null,null,null,null,null,null,null,null,null,null,null,null,null,null,null,null,null,null,null,null,677,677,"CBPX BE 99","Intesa Sanpaolo Wealth Management"]
[null,null,null,null,null,null,null,null,null,null,null,null,null,null,null,null,null,null,null,null,null,null,null,null,null,null,null,null,null,null,null,null,678,678,"DELE BE 22","Delen Private Bank"]
[null,null,null,null,null,null,null,null,null,null,null,null,null,null,null,null,null,null,null,null,null,null,null,null,null,null,null,null,null,null,null,null,679,679,"PCHQ BE BB","bpost"]
[null,null,null,null,null,null,null,null,null,null,null,null,null,null,null,null,null,null,null,null,null,null,null,null,null,null,null,null,null,null,null,null,680,680,"GKCC BE BB","BELFIUS BANK"]
[null,null,null,null,null,null,null,null,null,null,null,null,null,null,null,null,null,null,null,null,null,null,null,null,null,null,null,null,null,null,null,null,681,681,"VRIJ","VRIJ"]
[null,null,null,null,null,null,null,null,null,null,null,null,null,null,null,null,null,null,null,null,null,null,null,null,null,null,null,null,null,null,null,null,682,683,"GKCC BE BB","BELFIUS BANK"]
[null,null,null,null,null,null,null,null,null,null,null,null,null,null,null,null,null,null,null,null,null,null,null,null,null,null,null,null,null,null,null,null,684,684,"SGAB BE B2","Société Générale"]
[null,null,null,null,null,null,null,null,null,null,null,null,null,null,null,null,null,null,null,null,null,null,null,null,null,null,null,null,null,null,null,null,685,686,"BOFA BE 3X","Bank of America Europe DAC - Brussels Branch"]
[null,null,null,null,null,null,null,null,null,null,null,null,null,null,null,null,null,null,null,null,null,null,null,null,null,null,null,null,null,null,null,null,687,687,"MGTC BE BE","Euroclear Bank"]
[null,null,null,null,null,null,null,null,null,null,null,null,null,null,null,null,null,null,null,null,null,null,null,null,null,null,null,null,null,null,null,null,688,688,"SGAB BE B2","Société Générale"]
[null,null,null,null,null,null,null,null,null,null,null,null,null,null,null,null,null,null,null,null,null,null,null,null,null,null,null,null,null,null,null,null,689,689,"BOFA BE 3X","Bank of America Europe DAC - Brussels Branch"]
[null,null,null,null,null,null,null,null,null,null,null,null,null,null,null,null,null,null,null,null,null,null,null,null,null,null,null,null,null,null,null,null,690,692,"VRIJ","VRIJ"]
[null,null,null,null,null,null,null,null,null,null,null,null,null,null,null,null,null,null,null,null,null,null,null,null,null,null,null,null,null,null,null,null,693,693,"BOTK BE BX","MUFG Bank (Europe)"]
[null,null,null,null,null,null,null,null,null,null,null,null,null,null,null,null,null,null,null,null,null,null,null,null,null,null,null,null,null,null,null,null,694,694,"DEUT BE BE","Deutsche Bank AG"]
[null,null,null,null,null,null,null,null,null,null,null,null,null,null,null,null,null,null,null,null,null,null,null,null,null,null,null,null,null,null,null,null,695,695,"VRIJ","VRIJ"]
[null,null,null,null,null,null,null,null,null,null,null,null,null,null,null,null,null,null,null,null,null,null,null,null,null,null,null,null,null,null,null,null,696,696,"CRLY BE BB","Crédit Agricole Corporate & Investment Bank"]
[null,null,null,null,null,null,null,null,null,null,null,null,null,null,null,null,null,null,null,null,null,null,null,null,null,null,null,null,null,null,null,null,697,698,"VRIJ","VRIJ"]
[null,null,null,null,null,null,null,null,null,null,null,null,null,null,null,null,null,null,null,null,null,null,null,null,null,null,null,null,null,null,null,null,699,699,"MGTC BE BE","Euroclear Bank"]
[null,null,null,null,null,null,null,null,null,null,null,null,null,null,null,null,null,null,null,null,null,null,null,null,null,null,null,null,null,null,null,null,700,709,"AXAB BE 22","AXA Bank Belgium"]
[null,null,null,null,null,null,null,null,null,null,null,null,null,null,null,null,null,null,null,null,null,null,null,null,null,null,null,null,null,null,null,null,710,718,"VRIJ","VRIJ"]
[null,null,null,null,null,null,null,null,null,null,null,null,null,null,null,null,null,null,null,null,null,null,null,null,null,null,null,null,null,null,null,null,719,719,"ABNA BE 2A XXX","ABN AMRO Bank N.V."]
[null,null,null,null,null,null,null,null,null,null,null,null,null,null,null,null,null,null,null,null,null,null,null,null,null,null,null,null,null,null,null,null,720,721,"VRIJ","VRIJ"]
[null,null,null,null,null,null,null,null,null,null,null,null,null,null,null,null,null,null,null,null,null,null,null,null,null,null,null,null,null,null,null,null,722,722,"ABNA BE 2A IPC","ABN AMRO Bank N.V."]
[null,null,null,null,null,null,null,null,null,null,null,null,null,null,null,null,null,null,null,null,null,null,null,null,null,null,null,null,null,null,null,null,723,724,"VRIJ","VRIJ"]
[null,null,null,null,null,null,null,null,null,null,null,null,null,null,null,null,null,null,null,null,null,null,null,null,null,null,null,null,null,null,null,null,725,727,"KRED BE BB","KBC Bank"]
[null,null,null,null,null,null,null,null,null,null,null,null,null,null,null,null,null,null,null,null,null,null,null,null,null,null,null,null,null,null,null,null,728,729,"CREG BE BB",""]
[null,null,null,null,null,null,null,null,null,null,null,null,null,null,null,null,null,null,null,null,null,null,null,null,null,null,null,null,null,null,null,null,730,731,"KRED BE BB","KBC Bank"]
[null,null,null,null,null,null,null,null,null,null,null,null,null,null,null,null,null,null,null,null,null,null,null,null,null,null,null,null,null,null,null,null,732,732,"CREG BE BB",""]
[null,null,null,null,null,null,null,null,null,null,null,null,null,null,null,null,null,null,null,null,null,null,null,null,null,null,null,null,null,null,null,null,733,741,"KRED BE BB","KBC Bank"]
[null,null,null,null,null,null,null,null,null,null,null,null,null,null,null,null,null,null,null,null,null,null,null,null,null,null,null,null,null,null,null,null,742,742,"CREG BE BB",""]
[null,null,null,null,null,null,null,null,null,null,null,null,null,null,null,null,null,null,null,null,null,null,null,null,null,null,null,null,null,null,null,null,743,749,"KRED BE BB","KBC Bank"]
[null,null,null,null,null,null,null,null,null,null,null,null,null,null,null,null,null,null,null,null,null,null,null,null,null,null,null,null,null,null,null,null,750,774,"AXAB BE 22","AXA Bank Belgium"]
[null,null,null,null,null,null,null,null,null,null,null,null,null,null,null,null,null,null,null,null,null,null,null,null,null,null,null,null,null,null,null,null,775,799,"GKCC BE BB","BELFIUS BANK"]
[null,null,null,null,null,null,null,null,null,null,null,null,null,null,null,null,null,null,null,null,null,null,null,null,null,null,null,null,null,null,null,null,800,816,"AXAB BE 22","AXA Bank Belgium"]
[null,null,null,null,null,null,null,null,null,null,null,null,null,null,null,null,null,null,null,null,null,null,null,null,null,null,null,null,null,null,null,null,817,817,"ISAE BE BB","CACEIS Bank Belgian Branch"]
[null,null,null,null,null,null,null,null,null,null,null,null,null,null,null,null,null,null,null,null,null,null,null,null,null,null,null,null,null,null,null,null,818,822,"VRIJ","VRIJ"]
[null,null,null,null,null,null,null,null,null,null,null,null,null,null,null,null,null,null,null,null,null,null,null,null,null,null,null,null,null,null,null,null,823,823,"BLUX BE BB","Banque de Luxembourg"]
[null,null,null,null,null,null,null,null,null,null,null,null,null,null,null,null,null,null,null,null,null,null,null,null,null,null,null,null,null,null,null,null,824,824,"NAV","ING Bank"]
[null,null,null,null,null,null,null,null,null,null,null,null,null,null,null,null,null,null,null,null,null,null,null,null,null,null,null,null,null,null,null,null,825,826,"DEUT BE BE","Deutsche Bank AG"]
[null,null,null,null,null,null,null,null,null,null,null,null,null,null,null,null,null,null,null,null,null,null,null,null,null,null,null,null,null,null,null,null,827,827,"VRIJ","VRIJ"]
[null,null,null,null,null,null,null,null,null,null,null,null,null,null,null,null,null,null,null,null,null,null,null,null,null,null,null,null,null,null,null,null,828,828,"BBRU BE BB","ING België"]
[null,null,null,null,null,null,null,null,null,null,null,null,null,null,null,null,null,null,null,null,null,null,null,null,null,null,null,null,null,null,null,null,829,829,"VRIJ","VRIJ"]
[null,null,null,null,null,null,null,null,null,null,null,null,null,null,null,null,null,null,null,null,null,null,null,null,null,null,null,null,null,null,null,null,830,839,"GKCC BE BB","BELFIUS BANK"]
[null,null,null,null,null,null,null,null,null,null,null,null,null,null,null,null,null,null,null,null,null,null,null,null,null,null,null,null,null,null,null,null,840,840,"PRIB BE BB","Edmond de Rothschild (Europe)"]
[null,null,null,null,null,null,null,null,null,null,null,null,null,null,null,null,null,null,null,null,null,null,null,null,null,null,null,null,null,null,null,null,841,844,"VRIJ","VRIJ"]
[null,null,null,null,null,null,null,null,null,null,null,null,null,null,null,null,null,null,null,null,null,null,null,null,null,null,null,null,null,null,null,null,845,845,"DEGR BE BB","Bank Degroof Petercam"]
[null,null,null,null,null,null,null,null,null,null,null,null,null,null,null,null,null,null,null,null,null,null,null,null,null,null,null,null,null,null,null,null,846,849,"VRIJ","VRIJ"]
[null,null,null,null,null,null,null,null,null,null,null,null,null,null,null,null,null,null,null,null,null,null,null,null,null,null,null,null,null,null,null,null,850,853,"NICA BE BB","Crelan"]
[null,null,null,null,null,null,null,null,null,null,null,null,null,null,null,null,null,null,null,null,null,null,null,null,null,null,null,null,null,null,null,null,854,858,"VRIJ","VRIJ"]
[null,null,null,null,null,null,null,null,null,null,null,null,null,null,null,null,null,null,null,null,null,null,null,null,null,null,null,null,null,null,null,null,859,860,"NICA BE BB","Crelan"]
[null,null,null,null,null,null,null,null,null,null,null,null,null,null,null,null,null,null,null,null,null,null,null,null,null,null,null,null,null,null,null,null,861,861,"VRIJ","VRIJ"]
[null,null,null,null,null,null,null,null,null,null,null,null,null,null,null,null,null,null,null,null,null,null,null,null,null,null,null,null,null,null,null,null,862,863,"NICA BE BB","Crelan"]
[null,null,null,null,null,null,null,null,null,null,null,null,null,null,null,null,null,null,null,null,null,null,null,null,null,null,null,null,null,null,null,null,864,864,"VRIJ","VRIJ"]
[null,null,null,null,null,null,null,null,null,null,null,null,null,null,null,null,null,null,null,null,null,null,null,null,null,null,null,null,null,null,null,null,865,866,"NICA BE BB","Crelan"]
[null,null,null,null,null,null,null,null,null,null,null,null,null,null,null,null,null,null,null,null,null,null,null,null,null,null,null,null,null,null,null,null,867,867,"VRIJ","VRIJ"]
[null,null,null,null,null,null,null,null,null,null,null,null,null,null,null,null,null,null,null,null,null,null,null,null,null,null,null,null,null,null,null,null,868,868,"KRED BE BB","KBC Bank"]
[null,null,null,null,null,null,null,null,null,null,null,null,null,null,null,null,null,null,null,null,null,null,null,null,null,null,null,null,null,null,null,null,869,870,"VRIJ","VRIJ"]
[null,null,null,null,null,null,null,null,null,null,null,null,null,null,null,null,null,null,null,null,null,null,null,null,null,null,null,null,null,null,null,null,871,871,"BNAG BE BB","Bank Nagelmackers"]
[null,null,null,null,null,null,null,null,null,null,null,null,null,null,null,null,null,null,null,null,null,null,null,null,null,null,null,null,null,null,null,null,872,872,"VRIJ","VRIJ"]
[null,null,null,null,null,null,null,null,null,null,null,null,null,null,null,null,null,null,null,null,null,null,null,null,null,null,null,null,null,null,null,null,873,873,"PCHQ BE BB","bpost"]
[null,null,null,null,null,null,null,null,null,null,null,null,null,null,null,null,null,null,null,null,null,null,null,null,null,null,null,null,null,null,null,null,874,875,"VRIJ","VRIJ"]
[null,null,null,null,null,null,null,null,null,null,null,null,null,null,null,null,null,null,null,null,null,null,null,null,null,null,null,null,null,null,null,null,876,876,"MBWM BE BB","MeDirect Bank S.A."]
[null,null,null,null,null,null,null,null,null,null,null,null,null,null,null,null,null,null,null,null,null,null,null,null,null,null,null,null,null,null,null,null,877,879,"BNAG BE BB","Bank Nagelmackers"]
[null,null,null,null,null,null,null,null,null,null,null,null,null,null,null,null,null,null,null,null,null,null,null,null,null,null,null,null,null,null,null,null,880,881,"BBRU BE BB","ING België"]
[null,null,null,null,null,null,null,null,null,null,null,null,null,null,null,null,null,null,null,null,null,null,null,null,null,null,null,null,null,null,null,null,882,882,"VRIJ","VRIJ"]
[null,null,null,null,null,null,null,null,null,null,null,null,null,null,null,null,null,null,null,null,null,null,null,null,null,null,null,null,null,null,null,null,883,884,"BBRU BE BB","ING België"]
[null,null,null,null,null,null,null,null,null,null,null,null,null,null,null,null,null,null,null,null,null,null,null,null,null,null,null,null,null,null,null,null,885,886,"VRIJ","VRIJ"]
[null,null,null,null,null,null,null,null,null,null,null,null,null,null,null,null,null,null,null,null,null,null,null,null,null,null,null,null,null,null,null,null,887,888,"BBRU BE BB","ING België"]
[null,null,null,null,null,null,null,null,null,null,null,null,null,null,null,null,null,null,null,null,null,null,null,null,null,null,null,null,null,null,null,null,889,889,"VRIJ","VRIJ"]
[null,null,null,null,null,null,null,null,null,null,null,null,null,null,null,null,null,null,null,null,null,null,null,null,null,null,null,null,null,null,null,null,890,899,"VDSP BE 91","vdk bank"]
[null,null,null,null,null,null,null,null,null,null,null,null,null,null,null,null,null,null,null,null,null,null,null,null,null,null,null,null,null,null,null,null,900,902,"NAP","Onbeschikbaar"]
[null,null,null,null,null,null,null,null,null,null,null,null,null,null,null,null,null,null,null,null,null,null,null,null,null,null,null,null,null,null,null,null,903,904,"VRIJ","VRIJ"]
[null,null,null,null,null,null,null,null,null,null,null,null,null,null,null,null,null,null,null,null,null,null,null,null,null,null,null,null,null,null,null,null,905,905,"TRWI BE B1","Wise Europe SA"]
[null,null,null,null,null,null,null,null,null,null,null,null,null,null,null,null,null,null,null,null,null,null,null,null,null,null,null,null,null,null,null,null,906,906,"CEKV BE 88","Centrale Kredietverlening (C.K.V.)"]
[null,null,null,null,null,null,null,null,null,null,null,null,null,null,null,null,null,null,null,null,null,null,null,null,null,null,null,null,null,null,null,null,907,907,"NAV","Mollie B.V."]
[null,null,null,null,null,null,null,null,null,null,null,null,null,null,null,null,null,null,null,null,null,null,null,null,null,null,null,null,null,null,null,null,908,908,"CEKV BE 88","Centrale Kredietverlening (C.K.V.)"]
[null,null,null,null,null,null,null,null,null,null,null,null,null,null,null,null,null,null,null,null,null,null,null,null,null,null,null,null,null,null,null,null,909,909,"VRIJ","VRIJ"]
[null,null,null,null,null,null,null,null,null,null,null,null,null,null,null,null,null,null,null,null,null,null,null,null,null,null,null,null,null,null,null,null,910,910,"BBRU BE BB","ING België"]
[null,null,null,null,null,null,null,null,null,null,null,null,null,null,null,null,null,null,null,null,null,null,null,null,null,null,null,null,null,null,null,null,911,911,"TUNZ BE B1","Worldline Financial Solutions nv/SA"]
[null,null,null,null,null,null,null,null,null,null,null,null,null,null,null,null,null,null,null,null,null,null,null,null,null,null,null,null,null,null,null,null,912,912,"VRIJ","VRIJ"]
[null,null,null,null,null,null,null,null,null,null,null,null,null,null,null,null,null,null,null,null,null,null,null,null,null,null,null,null,null,null,null,null,913,913,"EPBF BE BB","EPBF"]
[null,null,null,null,null,null,null,null,null,null,null,null,null,null,null,null,null,null,null,null,null,null,null,null,null,null,null,null,null,null,null,null,914,914,"FXBB BE BB","FX4BIZ"]
[null,null,null,null,null,null,null,null,null,null,null,null,null,null,null,null,null,null,null,null,null,null,null,null,null,null,null,null,null,null,null,null,915,915,"OONX BE BB","Equals Money Europe SA"]
[null,null,null,null,null,null,null,null,null,null,null,null,null,null,null,null,null,null,null,null,null,null,null,null,null,null,null,null,null,null,null,null,916,916,"GOCF BE B1","GOLD COMMODITIES FOREX (G.C.F.)"]
[null,null,null,null,null,null,null,null,null,null,null,null,null,null,null,null,null,null,null,null,null,null,null,null,null,null,null,null,null,null,null,null,917,917,"-","Buy Way Personal Finance"]
[null,null,null,null,null,null,null,null,null,null,null,null,null,null,null,null,null,null,null,null,null,null,null,null,null,null,null,null,null,null,null,null,918,919,"VRIJ","VRIJ"]
[null,null,null,null,null,null,null,null,null,null,null,null,null,null,null,null,null,null,null,null,null,null,null,null,null,null,null,null,null,null,null,null,920,920,"BBRU BE BB","ING België"]
[null,null,null,null,null,null,null,null,null,null,null,null,null,null,null,null,null,null,null,null,null,null,null,null,null,null,null,null,null,null,null,null,921,921,"VRIJ","VRIJ"]
[null,null,null,null,null,null,null,null,null,null,null,null,null,null,null,null,null,null,null,null,null,null,null,null,null,null,null,null,null,null,null,null,922,923,"BBRU BE BB","ING België"]
[null,null,null,null,null,null,null,null,null,null,null,null,null,null,null,null,null,null,null,null,null,null,null,null,null,null,null,null,null,null,null,null,924,924,"FMMS BE B1","Fimaser"]
[null,null,null,null,null,null,null,null,null,null,null,null,null,null,null,null,null,null,null,null,null,null,null,null,null,null,null,null,null,null,null,null,925,925,"VRIJ","VRIJ"]
[null,null,null,null,null,null,null,null,null,null,null,null,null,null,null,null,null,null,null,null,null,null,null,null,null,null,null,null,null,null,null,null,926,926,"EBPB BE B1","Ebury Partners Belgium"]
[null,null,null,null,null,null,null,null,null,null,null,null,null,null,null,null,null,null,null,null,null,null,null,null,null,null,null,null,null,null,null,null,927,927,"VRIJ","VRIJ"]
[null,null,null,null,null,null,null,null,null,null,null,null,null,null,null,null,null,null,null,null,null,null,null,null,null,null,null,null,null,null,null,null,928,928,"VPAY BE B1","VIVA Payment Services"]
[null,null,null,null,null,null,null,null,null,null,null,null,null,null,null,null,null,null,null,null,null,null,null,null,null,null,null,null,null,null,null,null,929,931,"BBRU BE BB","ING België"]
[null,null,null,null,null,null,null,null,null,null,null,null,null,null,null,null,null,null,null,null,null,null,null,null,null,null,null,null,null,null,null,null,932,933,"VRIJ","VRIJ"]
[null,null,null,null,null,null,null,null,null,null,null,null,null,null,null,null,null,null,null,null,null,null,null,null,null,null,null,null,null,null,null,null,934,934,"BBRU BE BB","ING België"]
[null,null,null,null,null,null,null,null,null,null,null,null,null,null,null,null,null,null,null,null,null,null,null,null,null,null,null,null,null,null,null,null,935,935,"VRIJ","VRIJ"]
[null,null,null,null,null,null,null,null,null,null,null,null,null,null,null,null,null,null,null,null,null,null,null,null,null,null,null,null,null,null,null,null,936,936,"BBRU BE BB","ING België"]
[null,null,null,null,null,null,null,null,null,null,null,null,null,null,null,null,null,null,null,null,null,null,null,null,null,null,null,null,null,null,null,null,937,938,"VRIJ","VRIJ"]
[null,null,null,null,null,null,null,null,null,null,null,null,null,null,null,null,null,null,null,null,null,null,null,null,null,null,null,null,null,null,null,null,939,939,"BBRU BE BB","ING België"]
[null,null,null,null,null,null,null,null,null,null,null,null,null,null,null,null,null,null,null,null,null,null,null,null,null,null,null,null,null,null,null,null,940,940,"CLIQ BE B1","Banque Centrale de Compensation (Clearnet)"]
[null,null,null,null,null,null,null,null,null,null,null,null,null,null,null,null,null,null,null,null,null,null,null,null,null,null,null,null,null,null,null,null,941,941,"CVMC BE BB","C A Indosuez Wealth (Europe)"]
[null,null,null,null,null,null,null,null,null,null,null,null,null,null,null,null,null,null,null,null,null,null,null,null,null,null,null,null,null,null,null,null,942,942,"PUIL BE BB","Puilaetco Branch of Quintet Private Bank SA"]
[null,null,null,null,null,null,null,null,null,null,null,null,null,null,null,null,null,null,null,null,null,null,null,null,null,null,null,null,null,null,null,null,943,943,"nav","IC Financial Services SA – Belgian Branch"]
[null,null,null,null,null,null,null,null,null,null,null,null,null,null,null,null,null,null,null,null,null,null,null,null,null,null,null,null,null,null,null,null,944,944,"VRIJ","VRIJ"]
[null,null,null,null,null,null,null,null,null,null,null,null,null,null,null,null,null,null,null,null,null,null,null,null,null,null,null,null,null,null,null,null,945,945,"JPMG BE BB","J.P. Morgan SE – Brussels Branch"]
[null,null,null,null,null,null,null,null,null,null,null,null,null,null,null,null,null,null,null,null,null,null,null,null,null,null,null,null,null,null,null,null,946,947,"-","VRIJ"]
[null,null,null,null,null,null,null,null,null,null,null,null,null,null,null,null,null,null,null,null,null,null,null,null,null,null,null,null,null,null,null,null,948,948,"HOMN BE B1","Mastercard Transaction Services (Europe) NV/SA"]
[null,null,null,null,null,null,null,null,null,null,null,null,null,null,null,null,null,null,null,null,null,null,null,null,null,null,null,null,null,null,null,null,949,949,"HSBC BE BB","HSBC Continental Europe Belgium"]
[null,null,null,null,null,null,null,null,null,null,null,null,null,null,null,null,null,null,null,null,null,null,null,null,null,null,null,null,null,null,null,null,950,959,"CTBK BE BX","Beobank"]
[null,null,null,null,null,null,null,null,null,null,null,null,null,null,null,null,null,null,null,null,null,null,null,null,null,null,null,null,null,null,null,null,960,960,"ABNA BE 2A IPC","ABN AMRO Bank N.V."]
[null,null,null,null,null,null,null,null,null,null,null,null,null,null,null,null,null,null,null,null,null,null,null,null,null,null,null,null,null,null,null,null,961,961,"BBRU BE BB","ING België"]
[null,null,null,null,null,null,null,null,null,null,null,null,null,null,null,null,null,null,null,null,null,null,null,null,null,null,null,null,null,null,null,null,962,962,"VRIJ","VRIJ"]
[null,null,null,null,null,null,null,null,null,null,null,null,null,null,null,null,null,null,null,null,null,null,null,null,null,null,null,null,null,null,null,null,963,963,"AXAB BE 22","AXA Bank Belgium"]
[null,null,null,null,null,null,null,null,null,null,null,null,null,null,null,null,null,null,null,null,null,null,null,null,null,null,null,null,null,null,null,null,964,964,"FPEB BE B2","FINANCIERE DES PAIEMENTS ELECTRONIQUES SAS - NICKEL BELGIUM"]
[null,null,null,null,null,null,null,null,null,null,null,null,null,null,null,null,null,null,null,null,null,null,null,null,null,null,null,null,null,null,null,null,965,966,"VRIJ","VRIJ"]
[null,null,null,null,null,null,null,null,null,null,null,null,null,null,null,null,null,null,null,null,null,null,null,null,null,null,null,null,null,null,null,null,967,967,"TRWI BE B1","Wise Europe SA"]
[null,null,null,null,null,null,null,null,null,null,null,null,null,null,null,null,null,null,null,null,null,null,null,null,null,null,null,null,null,null,null,null,968,968,"ENIB BE BB",""]
[null,null,null,null,null,null,null,null,null,null,null,null,null,null,null,null,null,null,null,null,null,null,null,null,null,null,null,null,null,null,null,null,969,969,"PUIL BE BB","Puilaetco Branch of Quintet Private Bank SA"]
[null,null,null,null,null,null,null,null,null,null,null,null,null,null,null,null,null,null,null,null,null,null,null,null,null,null,null,null,null,null,null,null,970,970,"VRIJ","VRIJ"]
[null,null,null,null,null,null,null,null,null,null,null,null,null,null,null,null,null,null,null,null,null,null,null,null,null,null,null,null,null,null,null,null,971,971,"BBRU BE BB","ING België"]
[null,null,null,null,null,null,null,null,null,null,null,null,null,null,null,null,null,null,null,null,null,null,null,null,null,null,null,null,null,null,null,null,972,972,"NAP","Onbeschikbaar"]
[null,null,null,null,null,null,null,null,null,null,null,null,null,null,null,null,null,null,null,null,null,null,null,null,null,null,null,null,null,null,null,null,973,973,"ARSP BE 22","Argenta Spaarbank (ASPA)"]
[null,null,null,null,null,null,null,null,null,null,null,null,null,null,null,null,null,null,null,null,null,null,null,null,null,null,null,null,null,null,null,null,974,974,"PESO BE B1","PPS EU SA"]
[null,null,null,null,null,null,null,null,null,null,null,null,null,null,null,null,null,null,null,null,null,null,null,null,null,null,null,null,null,null,null,null,975,975,"AXAB BE 22","AXA Bank Belgium"]
[null,null,null,null,null,null,null,null,null,null,null,null,null,null,null,null,null,null,null,null,null,null,null,null,null,null,null,null,null,null,null,null,976,976,"BBRU BE BB","ING België"]
[null,null,null,null,null,null,null,null,null,null,null,null,null,null,null,null,null,null,null,null,null,null,null,null,null,null,null,null,null,null,null,null,977,977,"PAYV BE B2","Paynovate"]
[null,null,null,null,null,null,null,null,null,null,null,null,null,null,null,null,null,null,null,null,null,null,null,null,null,null,null,null,null,null,null,null,978,980,"ARSP BE 22","Argenta Spaarbank (ASPA)"]
[null,null,null,null,null,null,null,null,null,null,null,null,null,null,null,null,null,null,null,null,null,null,null,null,null,null,null,null,null,null,null,null,981,984,"PCHQ BE BB","bpost"]
[null,null,null,null,null,null,null,null,null,null,null,null,null,null,null,null,null,null,null,null,null,null,null,null,null,null,null,null,null,null,null,null,985,988,"VRIJ","VRIJ"]
[null,null,null,null,null,null,null,null,null,null,null,null,null,null,null,null,null,null,null,null,null,null,null,null,null,null,null,null,null,null,null,null,989,989,"nav","bpost"]
[null,null,null,null,null,null,null,null,null,null,null,null,null,null,null,null,null,null,null,null,null,null,null,null,null,null,null,null,null,null,null,null,990,999,"nav","Bpost"]